[Event "44th BAN-ch OMICON 2018"]
[Site "Dhaka"]
[Date "2018.11.28"]
[Round "5"]
[White "Hossain, Showkat Pollab"]
[Black "Islam, Kh. Aminul"]
[Result "1/2-1/2"]
[ECO "C68"]
[WhiteElo "2119"]
[BlackElo "2253"]
[Annotator "RC"]
[PlyCount "32"]
[EventDate "2018.11.24"]
[EventType "swiss"]
[EventCountry "BAN"]
[SourceTitle "playchess.com"]
[Source "ChessBase"]
[SourceQuality "1"]
[TimeControl "40/5400+30:1800+30"]

1. e4 {[%emt 0:00:44]} e5 {[%emt 0:00:00]} 2. Nf3 {[%emt 0:00:04]} Nc6 {[%emt 0:00:00]} 3. Bb5 {[%emt 0:01:26]} a6 {[%emt 0:00:11]} 4. Bxc6 {[%emt 0:00:02]} dxc6 {[%emt 0:00:13]} 5. O-O {[%emt 0:00:03]} Qf6 {[%emt 0:00:30]} 6. d4 {[%emt 0:00:46]} exd4 {[%emt 0:00:07]} 7. Qxd4 {[%emt 0:01:11]} Qxd4 {[%emt 0:00:13]} 8. Nxd4 {[%emt 0:00:08]} Bd7 {[%emt 0:00:31]} 9. Nd2 {[%emt 0:06:24]} O-O-O {[%emt 0:00:55]} 10. N2f3 {[%emt 0:04:58]} Re8 {[%emt 0:03:33]} 11. Re1 {[%emt 0:01:45]} c5 {[%emt 0:01:59]} 12. Nf5 {[%emt 0:11:06]} Bxf5 {[%emt 0:00:26]} 13. exf5 {[%emt 0:00:02]} Rxe1+ {[%emt 0:00:08]} 14. Nxe1 {[%emt 0:00:05]} Nf6 {[%emt 0:00:20]} 15. Nf3 {[%emt 0:01:32]} Bd6 {[%emt 0:00:44]} 16. Bd2 {[%emt 0:06:39]} Ne4 {[%emt 0:14:09]} 1/2-1/2

[Event "44th BAN-ch OMICON 2018"]
[Site "Dhaka"]
[Date "2018.11.28"]
[Round "5"]
[White "Zia, Tahsin Tajwar"]
[Black "Mehdi Hasan Parag"]
[Result "1/2-1/2"]
[ECO "C00"]
[WhiteElo "1803"]
[BlackElo "2218"]
[Annotator "NA RC"]
[PlyCount "87"]
[EventDate "2018.11.24"]
[EventType "swiss"]
[EventCountry "BAN"]
[SourceTitle "playchess.com"]
[Source "ChessBase"]
[SourceQuality "1"]
[TimeControl "40/5400+30:1800+30"]

{[%evp 33,87,-1,-39,-43,-20,-35,42,3,32767,42,125,93,89,105,111,80,106,39,64,30,69,32767,80,75,90,97,86,0,93,56,66,65,50,68,55,65,79,48,61,73,67,52,34,20,77,31,343,289,375,32767,10,15,30,29,10,15]} 1. Nf3 {[%emt 0:00:00]} Nf6 {[%emt 0:00:00]} 2. g3 {[%emt 0:00:00]} d5 {[%emt 0:00:43]} 3. Bg2 {[%emt 0:00:04]} e6 {[%emt 0:00:16]} 4. O-O {[%emt 0:00:07]} Be7 {[%emt 0:00:03]} 5. d3 {[%emt 0:00:15]} O-O {[%emt 0:00:47]} 6. Nbd2 {[%emt 0:00:10]} c5 {[%emt 0:00:16]} 7. e4 {[%emt 0:00:07]} Nc6 {[%emt 0:00:19]} 8. e5 {[%emt 0:00:22]} Ne8 {[%emt 0:02:10]} 9. Re1 {[%emt 0:00:25] C00: French: Unusual White 2nd moves} Nc7 {[%emt 0:00:24]} (9... b5 10. h4 Nc7 11. Ng5 Bxg5 12. hxg5 Qxg5 13. Nb3 Qe7 14. Be3 Na6 15. c4 bxc4 16. dxc4 Bb7 17. Qh5 dxc4 {½-½ (80) Savchenko,B (2604)-Yemelin,V (2588) Loo 2013}) 10. h4 {[%emt 0:00:56]} f6 {[%emt 0:00:28]} 11. exf6 {[%emt 0:07:16]} Bxf6 {[%emt 0:00:06]} 12. a3 $146 {[%emt 0:01:44]} ({Predecessor:} 12. Nf1 e5 13. Bg5 Qd6 14. Ne3 Be6 15. c4 h6 16. cxd5 Nxd5 {½-½ (55) Vrana,F (2300)-Kocur,V (2120) Stare Mesto 2003}) 12... b5 {[%emt 0:04:33]} 13. c4 {[%emt 0:02:04]} Rb8 {[%emt 0:00:54]} 14. Rb1 {[%emt 0:04:45]} Kh8 {[%emt 0:15:51]} 15. Qc2 {[%emt 0:04:43]} Qd6 {[%emt 0:02:08]} 16. b4 {[%emt 0:05:57]} cxb4 {[%emt 0:09:09]} 17. c5 {[%emt 0:02:04]} Qd8 {[%emt 0:03:23]} 18. axb4 {[%emt 0:00:27]} Na6 {[%emt 0:01:13]} 19. Ba3 {[%emt 0:01:06]} Qc7 {[%emt 0:00:47] [#]} (19... e5 $1 $15) 20. Nf1 {[%emt 0:06:00]} (20. d4 $1 $16) 20... Bd7 {[%emt 0:01:43]} ({Black should play} 20... e5 $11) 21. Qd2 {[%emt 0:01:00]} Nd4 {[%emt 0:03:39]} ({Better is} 21... e5 $14) 22. N1h2 {[%emt 0:02:55]} Rbe8 {[%emt 0:05:23]} 23. Bb2 {[%emt 0:03:06]} Nxf3+ {[%emt 0:02:59]} 24. Nxf3 {[%emt 0:00:28]} e5 {[%emt 0:02:59]} 25. d4 {[%emt 0:01:46]} e4 {[%emt 0:01:24]} 26. Ne5 {[%emt 0:01:21]} Nb8 {[%emt 0:01:04]} 27. Nxd7 {[%emt 0:01:06]} Qxd7 {[%emt 0:00:30]} 28. Ra1 {[%emt 0:01:42]} a6 {[%emt 0:00:04]} 29. Ra3 {[%emt 0:00:24]} Qc7 {[%emt 0:07:21]} 30. Qc3 {[%emt 0:03:38]} (30. Ree3 $16) 30... Rf7 {[%emt 0:02:28]} (30... Nc6 $11 31. Rxa6 Qc8 $11) 31. Bc1 {[%emt 0:01:57]} Nc6 {[%emt 0:02:57]} 32. Be3 {[%emt 0:01:30]} a5 {[%emt 0:01:04]} 33. Rxa5 {[%emt 0:01:43]} Nxa5 {[%emt 0:00:06]} 34. bxa5 {[%emt 0:00:04]} Ra8 {[%emt 0:01:10]} 35. Ra1 {[%emt 0:00:14]} Qc6 {[%emt 0:00:24]} 36. Qb4 {[%emt 0:01:20]} Rb7 {[%emt 0:02:41]} 37. Bf1 {[%emt 0:01:13]} h6 {[%emt 0:01:15]} 38. Rb1 {[%emt 0:02:10]} Qc7 {[%emt 0:05:16] [#]} (38... Qe6 $11) 39. Bf4 {[%emt 0:00:58]} (39. Qb3 $1 $16 {[%cal Rb3d5]} Qf7 40. Qa2) 39... Qd8 $2 {[%emt 0:11:47]} (39... Qc8 $1 $14) 40. c6 {[%emt 0:00:00]} Rba7 {[%emt 0:00:00]} 41. c7 $2 {[%emt 0:01:27]} ({Less strong is} 41. Bxb5 Be7 $16) ({Weaker is} 41. Qxb5 Bxd4 42. Rd1 Rxa5 $16) (41. Qc5 $18) 41... Rxc7 {[%emt 0:00:22]} 42. Bxc7 {[%emt 0:00:08]} Qxc7 {[%emt 0:00:10]} 43. Bxb5 {[%emt 0:01:27]} Qxa5 {[%emt 0:02:19]} 44. Bc6 $11 {[%emt 0:01:11]} 1/2-1/2

[Event "44th BAN-ch OMICON 2018"]
[Site "Dhaka"]
[Date "2018.11.29"]
[Round "6"]
[White "Anata, Choudhury"]
[Black "Md., Sharif Hossain"]
[Result "1-0"]
[ECO "B01"]
[WhiteElo "2141"]
[BlackElo "2198"]
[Annotator "RC"]
[PlyCount "164"]
[EventDate "2018.11.24"]
[EventType "swiss"]
[EventCountry "BAN"]
[SourceTitle "playchess.com"]
[Source "ChessBase"]
[SourceQuality "1"]
[TimeControl "40/5400+30:1800+30"]

1. e4 {[%emt 0:00:00]} d5 {[%emt 0:00:00]} 2. exd5 Qxd5 {[%emt 0:00:00]} 3. Nf3 {[%emt 0:00:00]} Nf6 {[%emt 0:00:09]} 4. d4 {[%emt 0:00:09]} a6 {[%emt 0:01:13]} 5. c4 {[%emt 0:00:19]} Qd6 {[%emt 0:00:19]} 6. Nc3 {[%emt 0:00:15]} g6 {[%emt 0:00:52]} 7. Be2 {[%emt 0:00:36]} Bg7 {[%emt 0:00:15]} 8. O-O {[%emt 0:00:54]} O-O {[%emt 0:07:54]} 9. Re1 {[%emt 0:04:17]} c5 {[%emt 0:03:33]} 10. dxc5 {[%emt 0:07:10]} Qxc5 {[%emt 0:00:28]} 11. Be3 {[%emt 0:00:13]} Qc7 {[%emt 0:01:17]} 12. Qb3 {[%emt 0:01:09]} Nbd7 {[%emt 0:04:25]} 13. Nd5 {[%emt 0:01:01]} Nxd5 {[%emt 0:01:46]} 14. cxd5 {[%emt 0:00:10]} Ne5 {[%emt 0:08:58]} 15. Rac1 {[%emt 0:11:33]} Qd7 {[%emt 0:06:56]} 16. Bb6 {[%emt 0:04:00]} Qf5 {[%emt 0:07:46]} 17. Bc5 {[%emt 0:20:38]} Re8 {[%emt 0:03:29]} 18. h3 {[%emt 0:04:14]} b5 {[%emt 0:10:06]} 19. Be3 {[%emt 0:14:41]} Qf6 {[%emt 0:07:20]} 20. Nd4 {[%emt 0:03:21]} Qd6 {[%emt 0:07:41]} 21. Red1 {[%emt 0:05:05]} Bb7 {[%emt 0:07:08]} 22. Nc6 {[%emt 0:00:56]} Rac8 {[%emt 0:03:12]} 23. a4 {[%emt 0:00:52]} Bxc6 {[%emt 0:12:14]} 24. dxc6 {[%emt 0:01:28]} Qb8 {[%emt 0:00:53]} 25. axb5 {[%emt 0:04:46]} Nxc6 {[%emt 0:02:55]} 26. Qa4 {[%emt 0:00:32]} axb5 {[%emt 0:02:11]} 27. Bxb5 {[%emt 0:00:25]} Ne5 {[%emt 0:00:00]} 28. Bxe8 {[%emt 0:00:34]} Rxe8 {[%emt 0:00:00]} 29. b4 {[%emt 0:02:04]} f5 {[%emt 0:00:47]} 30. b5 {[%emt 0:00:36]} Nf7 {[%emt 0:00:36]} 31. b6 {[%emt 0:00:39]} Be5 {[%emt 0:00:17]} 32. Qa7 {[%emt 0:00:32]} f4 {[%emt 0:00:36]} 33. Qxb8 {[%emt 0:00:34]} Rxb8 {[%emt 0:00:10]} 34. Bc5 {[%emt 0:00:25]} Bd6 {[%emt 0:00:16]} 35. Bxd6 {[%emt 0:00:50]} Nxd6 {[%emt 0:00:01]} 36. Rc6 {[%emt 0:00:11]} Kf7 {[%emt 0:00:24]} 37. Ra1 {[%emt 0:00:37]} Ke6 {[%emt 0:00:34]} 38. Ra7 {[%emt 0:00:41]} h6 {[%emt 0:00:38]} 39. b7 {[%emt 0:05:53]} Kd7 {[%emt 0:00:15]} 40. Rb6 {[%emt 0:00:00]} Kc7 {[%emt 0:00:00]} 41. Ra8 {[%emt 0:01:07]} Rxb7 {[%emt 0:00:41]} 42. Rxb7+ {[%emt 0:00:15]} Kxb7 {[%emt 0:00:00]} 43. Rg8 {[%emt 0:01:15]} g5 {[%emt 0:00:23]} 44. Rg7 {[%emt 0:00:10]} Kc6 {[%emt 0:01:52]} 45. Rg6 {[%emt 0:00:28]} Kd5 {[%emt 0:00:15]} 46. Rxh6 {[%emt 0:00:10]} Ke5 {[%emt 0:00:15]} 47. Kf1 {[%emt 0:01:25]} Nf7 {[%emt 0:01:15]} 48. Ra6 {[%emt 0:00:24]} Kf5 {[%emt 0:00:26]} 49. Ra7 {[%emt 0:00:30]} Kf6 {[%emt 0:00:14]} 50. Ke2 {[%emt 0:00:25]} Ne5 {[%emt 0:00:47]} 51. Kd2 {[%emt 0:02:57]} e6 {[%emt 0:00:47]} 52. Ra4 {[%emt 0:01:55]} Kf5 {[%emt 0:00:55]} 53. Kc3 {[%emt 0:01:50]} g4 {[%emt 0:03:43]} 54. Ra5 {[%emt 0:10:27]} gxh3 {[%emt 0:01:35]} 55. gxh3 {[%emt 0:00:16]} Kf6 {[%emt 0:00:31]} 56. Rb5 {[%emt 0:02:47]} Nf3 {[%emt 0:00:34]} 57. Kd3 {[%emt 0:04:09]} e5 {[%emt 0:00:50]} 58. h4 {[%emt 0:00:46]} Nxh4 {[%emt 0:12:30]} 59. Ke4 {[%emt 0:00:30]} Ng6 {[%emt 0:01:03]} 60. Rb6+ {[%emt 0:00:21]} Kg5 {[%emt 0:00:44]} 61. Re6 {[%emt 0:05:55]} f3 {[%emt 0:04:31]} 62. Ra6 {[%emt 0:01:47]} Nf4 {[%emt 0:04:04]} 63. Ra3 {[%emt 0:02:24]} Ne6 {[%emt 0:01:56]} 64. Rxf3 {[%emt 0:01:05]} Nd4 {[%emt 0:00:36]} 65. Rf8 {[%emt 0:00:28]} Nc6 {[%emt 0:01:01]} 66. Rc8 {[%emt 0:00:59]} Ne7 {[%emt 0:00:20]} 67. Rc5 {[%emt 0:01:37]} Kf6 {[%emt 0:00:38]} 68. Rxe5 {[%emt 0:00:17]} Nc8 {[%emt 0:00:08]} 69. Rc5 {[%emt 0:01:32]} Nd6+ {[%emt 0:00:13]} 70. Kf4 {[%emt 0:00:31]} Ne8 {[%emt 0:00:07]} 71. Rc6+ {[%emt 0:00:40]} Ke7 {[%emt 0:00:01]} 72. Ke5 {[%emt 0:00:14]} Kd7 {[%emt 0:00:11]} 73. Rh6 {[%emt 0:00:13]} Ke7 {[%emt 0:00:24]} 74. f4 {[%emt 0:00:14]} Kf7 {[%emt 0:00:05]} 75. Ra6 {[%emt 0:00:26]} Kg7 {[%emt 0:00:16]} 76. f5 {[%emt 0:00:19]} Kf8 {[%emt 0:00:35]} 77. Ra7 {[%emt 0:00:18]} Ng7 {[%emt 0:00:41]} 78. f6 {[%emt 0:00:35]} Nh5 {[%emt 0:00:23]} 79. Ke6 {[%emt 0:01:14]} Nf4+ {[%emt 0:00:13]} 80. Kf5 {[%emt 0:00:07]} Nd5 {[%emt 0:00:15]} 81. Ke5 {[%emt 0:01:29]} Nb6 {[%emt 0:01:02]} 82. Ke6 {[%emt 0:00:16]} Kg8 {[%emt 0:00:34]} 1-0

[Event "44th BAN-ch OMICON 2018"]
[Site "Dhaka"]
[Date "2018.11.29"]
[Round "6"]
[White "Mohammad, Javed"]
[Black "Mohammad Fahad, Rahman"]
[Result "1/2-1/2"]
[ECO "B96"]
[WhiteElo "2135"]
[BlackElo "2381"]
[Annotator "RC"]
[PlyCount "103"]
[EventDate "2018.11.24"]
[EventType "swiss"]
[EventCountry "BAN"]
[SourceTitle "playchess.com"]
[Source "ChessBase"]
[SourceQuality "1"]
[TimeControl "40/5400+30:1800+30"]

1. e4 {[%emt 0:00:00]} c5 {[%emt 0:00:00]} 2. Nf3 {[%emt 0:00:09]} d6 {[%emt 0:00:00]} 3. d4 {[%emt 0:01:14]} cxd4 {[%emt 0:00:00]} 4. Nxd4 {[%emt 0:00:13]} Nf6 {[%emt 0:00:05]} 5. Nc3 {[%emt 0:00:10]} a6 {[%emt 0:00:07]} 6. Bg5 {[%emt 0:03:34]} e6 {[%emt 0:00:23]} 7. f4 {[%emt 0:00:05]} h6 {[%emt 0:00:27]} 8. Bh4 {[%emt 0:01:05]} Qb6 {[%emt 0:00:20]} 9. a3 {[%emt 0:01:06]} Be7 {[%emt 0:00:25]} 10. Bf2 {[%emt 0:00:26]} Qc7 {[%emt 0:00:15]} 11. Qe2 {[%emt 0:00:16]} Nbd7 {[%emt 0:04:46]} 12. g4 {[%emt 0:02:11]} b5 {[%emt 0:03:25]} 13. O-O-O {[%emt 0:02:14]} Bb7 {[%emt 0:00:37]} 14. Bg2 {[%emt 0:04:45]} g5 {[%emt 0:03:47]} 15. h4 {[%emt 0:02:30]} Rg8 {[%emt 0:09:31]} 16. hxg5 {[%emt 0:11:51]} hxg5 {[%emt 0:00:12]} 17. fxg5 {[%emt 0:03:00]} Rxg5 {[%emt 0:00:11]} 18. Rh8+ {[%emt 0:00:15]} Rg8 {[%emt 0:01:18]} 19. Rxg8+ {[%emt 0:09:18]} Nxg8 {[%emt 0:02:57]} 20. Be3 {[%emt 0:10:35]} Ne5 {[%emt 0:03:02]} 21. g5 {[%emt 0:00:53]} O-O-O {[%emt 0:06:14]} 22. Kb1 {[%emt 0:06:38]} Kb8 {[%emt 0:03:01]} 23. Rf1 {[%emt 0:05:57]} Rf8 {[%emt 0:09:14]} 24. a4 {[%emt 0:04:44]} bxa4 {[%emt 0:14:50]} 25. Nxa4 {[%emt 0:00:28]} Nc4 {[%emt 0:00:16]} 26. Bc1 {[%emt 0:02:15]} Bc8 {[%emt 0:05:35]} 27. Rf3 {[%emt 0:00:36]} Na5 {[%emt 0:08:45]} 28. Bd2 {[%emt 0:04:54]} Bb7 {[%emt 0:00:26]} 29. Rc3 {[%emt 0:01:13]} Qd7 {[%emt 0:05:22]} 30. Nb6 {[%emt 0:00:39]} Qd8 {[%emt 0:00:04]} 31. Na4 {[%emt 0:06:46]} Bxg5 {[%emt 0:02:02]} 32. Bxg5 {[%emt 0:09:32]} Qxg5 {[%emt 0:00:08]} 33. b4 {[%emt 0:00:10]} Qf6 {[%emt 0:06:44]} 34. Qd2 {[%emt 0:00:38]} e5 {[%emt 0:00:18]} 35. Nf5 {[%emt 0:00:57]} Nc6 {[%emt 0:00:10]} 36. Nb6 {[%emt 0:00:16]} Rd8 {[%emt 0:00:36]} 37. Nd5 {[%emt 0:04:04]} Qe6 {[%emt 0:00:05]} 38. b5 {[%emt 0:00:19]} axb5 {[%emt 0:00:15]} 39. Bf1 {[%emt 0:01:06]} Nce7 {[%emt 0:01:19]} 40. Nc7 {[%emt 0:00:00]} Qf6 {[%emt 0:00:00]} 41. Bxb5 {[%emt 0:10:53]} d5 {[%emt 0:06:41]} 42. Ne8 {[%emt 0:14:49]} Qb6 {[%emt 0:01:12]} 43. Rb3 {[%emt 0:00:23]} Nxf5 {[%emt 0:05:30]} 44. exf5 {[%emt 0:00:11]} Nf6 {[%emt 0:11:49]} 45. Nxf6 {[%emt 0:04:49]} Qxf6 {[%emt 0:00:02]} 46. Qa5 {[%emt 0:00:43]} Rd6 {[%emt 0:03:35]} 47. Ra3 {[%emt 0:00:13]} e4 {[%emt 0:01:42]} 48. Qa7+ {[%emt 0:00:40]} Kc8 {[%emt 0:00:12]} 49. Qc5+ {[%emt 0:00:22]} Kb8 {[%emt 0:00:18]} 50. Qa7+ {[%emt 0:01:04]} Kc8 {[%emt 0:06:59]} 51. Qc5+ {[%emt 0:00:13]} Kb8 {[%emt 0:00:38]} 52. Qa7+ {[%emt 0:01:01]} 1/2-1/2

[Event "44th BAN-ch OMICON 2018"]
[Site "Dhaka"]
[Date "2018.11.29"]
[Round "6"]
[White "Subrota, Biswas"]
[Black "Zia, Tahsin Tajwar"]
[Result "1/2-1/2"]
[ECO "D01"]
[WhiteElo "2126"]
[BlackElo "1803"]
[Annotator "ChessBase"]
[PlyCount "108"]
[EventDate "2018.11.24"]
[EventType "swiss"]
[EventCountry "BAN"]
[SourceTitle "playchess.com"]
[Source "ChessBase"]
[SourceQuality "1"]
[TimeControl "40/5400+30:1800+30"]

1. Nc3 {[%emt 0:00:00]} d5 {[%emt 0:00:00]} 2. d4 {[%emt 0:00:35]} Nf6 {[%emt 0:00:18]} 3. Bg5 {[%emt 0:00:06]} Bf5 {[%emt 0:01:03]} 4. f3 {[%emt 0:00:39]} c6 {[%emt 0:02:04]} 5. Qd2 {[%emt 0:00:45]} Nbd7 {[%emt 0:00:33]} 6. Nh3 {[%emt 0:00:12]} h6 {[%emt 0:01:58]} 7. Bh4 {[%emt 0:00:19]} g5 {[%emt 0:02:46]} 8. Bg3 {[%emt 0:00:43]} Bg7 {[%emt 0:00:31]} 9. Nf2 {[%emt 0:01:05]} Bg6 {[%emt 0:02:31]} 10. e4 {[%emt 0:05:58]} e6 {[%emt 0:02:52]} 11. h4 {[%emt 0:06:15]} Nh5 {[%emt 0:02:30]} 12. Bd6 {[%emt 0:01:06]} Nb6 {[%emt 0:00:59]} 13. Bc5 {[%emt 0:03:16]} Ng3 {[%emt 0:01:04]} 14. O-O-O {[%emt 0:04:10]} Nxh1 {[%emt 0:01:17]} 15. Nxh1 {[%emt 0:00:02]} gxh4 {[%emt 0:00:42]} 16. exd5 {[%emt 0:02:46]} Nxd5 {[%emt 0:01:48]} 17. Ne4 {[%emt 0:01:28]} b6 {[%emt 0:06:40]} 18. Nd6+ {[%emt 0:03:28]} Kd7 {[%emt 0:01:46]} 19. c4 {[%emt 0:13:33]} Qg5 {[%emt 0:02:57]} 20. Qxg5 {[%emt 0:01:05]} hxg5 {[%emt 0:00:13]} 21. cxd5 {[%emt 0:00:24]} exd5 {[%emt 0:02:09]} 22. Ba3 {[%emt 0:01:24]} Bf8 {[%emt 0:02:21]} 23. Nb5 {[%emt 0:00:18]} cxb5 {[%emt 0:01:17]} 24. Bxb5+ {[%emt 0:00:05]} Kd8 {[%emt 0:00:18]} 25. Ba6 {[%emt 0:03:21]} Bxa3 {[%emt 0:00:57]} 26. bxa3 {[%emt 0:00:01]} Kc7 {[%emt 0:01:01]} 27. Nf2 {[%emt 0:00:35]} b5 {[%emt 0:03:00]} 28. Bxb5 {[%emt 0:01:48]} Kb6 {[%emt 0:01:22]} 29. Bd7 {[%emt 0:02:07]} Rhd8 {[%emt 0:01:12]} 30. Bh3 {[%emt 0:02:02]} Re8 {[%emt 0:01:54]} 31. Kd2 {[%emt 0:00:16]} Re7 {[%emt 0:01:39]} 32. Ng4 {[%emt 0:02:19]} Rc8 {[%emt 0:01:27]} 33. Ne3 {[%emt 0:00:47]} Rd8 {[%emt 0:02:15]} 34. Rc1 {[%emt 0:03:02]} Rc7 {[%emt 0:00:56]} 35. Rf1 {[%emt 0:00:43]} Ka5 {[%emt 0:02:43]} 36. f4 {[%emt 0:01:02]} Be4 {[%emt 0:01:17]} 37. fxg5 {[%emt 0:02:11]} Rb8 {[%emt 0:01:55]} 38. Nf5 {[%emt 0:08:19]} Rb2+ {[%emt 0:01:38]} 39. Ke3 {[%emt 0:00:15]} Rc3+ {[%emt 0:01:31]} 40. Kf4 {[%emt 0:00:00]} Bxf5 {[%emt 0:00:00]} 41. Kxf5 {[%emt 0:00:20]} Rxa3 {[%emt 0:03:03]} 42. Ke5 {[%emt 0:01:15]} Rb7 {[%emt 0:02:48]} 43. Kxd5 {[%emt 0:03:14]} Rxa2 {[%emt 0:01:46]} 44. Ke4 {[%emt 0:01:14]} Rab2 {[%emt 0:12:40]} 45. d5 {[%emt 0:04:36]} Re7+ {[%emt 0:02:15]} 46. Kd4 {[%emt 0:01:15]} Kb4 {[%emt 0:04:02]} 47. Bf5 {[%emt 0:03:36]} Rd2+ {[%emt 0:05:56]} 48. Bd3 {[%emt 0:00:02]} Rxg2 {[%emt 0:03:07]} 49. Rb1+ {[%emt 0:01:04]} Ka3 {[%emt 0:02:41]} 50. Rh1 {[%emt 0:09:19]} Rg4+ {[%emt 0:01:56]} 51. Kc5 {[%emt 0:00:03]} Rxg5 {[%emt 0:00:34]} 52. Rxh4 {[%emt 0:00:19]} Ree5 {[%emt 0:02:09]} 53. Bc4 {[%emt 0:00:56]} Rh5 {[%emt 0:01:43]} 54. Rd4 {[%emt 0:01:44]} Kb2 {[%emt 0:03:04]} 1/2-1/2

[Event "44th BAN-ch OMICON 2018"]
[Site "Dhaka"]
[Date "2018.11.29"]
[Round "6"]
[White "Nayem, Haque"]
[Black "Ghosh, Chanchal Kumer"]
[Result "0-1"]
[ECO "A11"]
[WhiteElo "2074"]
[BlackElo "2069"]
[Annotator "NA RC"]
[PlyCount "106"]
[EventDate "2018.11.24"]
[EventType "swiss"]
[EventCountry "BAN"]
[SourceTitle "playchess.com"]
[Source "ChessBase"]
[SourceQuality "1"]
[TimeControl "40/5400+30:1800+30"]

1. c4 {[%emt 1:30:30]} Nf6 {[%emt 1:30:30]} 2. Nf3 {[%emt 0:00:30]} c6 {[%emt 0:00:30]} 3. g3 {[%emt 0:00:30]} d5 {[%emt 0:00:30]} 4. Bg2 {[%emt 0:00:30]} Nbd7 {[%emt 0:00:30]} 5. O-O {[%emt 0:00:30] A11: English Opening: 1...c6} e5 {[%emt 0:00:30]} 6. d3 {[%emt 0:00:30]} Be7 {[%emt 0:00:30]} (6... dxc4 7. dxc4 Be7 8. Nc3 O-O 9. Qc2 Qc7 10. Rd1 Re8 11. a3 a5 12. Rb1 h6 13. h3 Nb6 14. b3 a4 15. Nxa4 Nxa4 16. bxa4 e4 17. Bf4 Qa5 18. Nd2 Qxa4 19. Rb3 Bf5 {1-0 (50) Svidler,P (2760)-Morozevich,A (2665) Moscow 2018}) 7. cxd5 {[%emt 0:00:30]} cxd5 {[%emt 0:00:30]} 8. d4 {[%emt 0:00:30]} e4 {[%emt 0:00:30]} 9. Ne1 {[%emt 0:00:30]} O-O {[%emt 0:00:30]} 10. Nc3 {[%emt 0:00:30]} Nb6 {[%emt 0:00:30]} 11. f3 $146 {[%emt 0:00:30]} ({Predecessor:} 11. Nc2 Be6 12. Ne3 Rc8 13. f4 {½-½ (13) Supancic,D (2372)-Roskar,R (2245) Celje 2004}) 11... Re8 {[%emt 0:00:30]} 12. fxe4 {[%emt 0:00:30]} Nxe4 {[%emt 0:00:30]} 13. Nxe4 {[%emt 0:00:30]} dxe4 {[%emt 0:00:30]} 14. Nc2 {[%emt 0:00:30]} Bd6 {[%emt 0:00:30]} 15. Bf4 {[%emt 0:00:30]} Nd5 {[%emt 0:00:30]} 16. Bxd6 {[%emt 0:00:30]} Qxd6 {[%emt 0:00:30]} 17. Qd2 {[%emt 0:00:30]} Bg4 {[%emt 0:00:30]} 18. Ne3 {[%emt 0:00:30]} Qh6 {[%emt 0:00:30]} 19. Rf4 $2 {[%emt 0:00:30]} (19. Nc4 $15) 19... Nxf4 {[%emt 0:00:30]} 20. gxf4 {[%emt 0:00:30]} Qxf4 {[%emt 0:00:30]} 21. Rf1 {[%emt 0:00:30]} Qg5 {[%emt 0:00:30]} 22. h4 {[%emt 0:00:30]} Qh6 {[%emt 0:00:30]} 23. Qc3 {[%emt 0:00:30]} Qxh4 {[%emt 0:00:30]} 24. Rf4 {[%emt 0:00:30]} h5 {[%emt 0:00:30]} 25. Qb3 {[%emt 0:00:30]} Rf8 {[%emt 0:00:30]} 26. Rxe4 {[%emt 0:00:30]} b6 {[%emt 0:00:30]} 27. Rf4 {[%emt 0:00:30]} Qg3 {[%emt 0:00:30]} 28. Rf2 {[%emt 0:00:30]} Rac8 {[%emt 0:00:30]} 29. Nc4 {[%emt 0:00:30]} Qxb3 {[%emt 0:00:30]} 30. axb3 {[%emt 0:00:30]} Rfd8 {[%emt 0:00:30]} 31. d5 {[%emt 0:00:30]} f6 {[%emt 0:00:30]} 32. e4 {[%emt 0:00:30]} Rc5 {[%emt 0:00:30]} 33. Rd2 {[%emt 0:00:30]} Rb5 {[%emt 0:00:30]} 34. e5 {[%emt 0:00:30]} fxe5 {[%emt 0:00:30]} 35. Nxe5 {[%emt 0:00:30]} Rxb3 {[%emt 0:00:30]} 36. d6 {[%emt 0:00:30]} Re3 {[%emt 0:00:30]} 37. Nc6 {[%emt 0:00:30]} Rd7 {[%emt 0:00:30]} 38. Nb8 {[%emt 0:00:30]} Kf7 {[%emt 0:00:30]} 39. Nxd7 {[%emt 0:00:30]} Bxd7 {[%emt 0:00:30]} 40. Bd5+ {[%emt 0:00:30]} Ke8 {[%emt 0:00:30]} 41. Kf2 {[%emt 0:30:30]} Re5 {[%emt 0:30:30]} 42. Bf3 {[%emt 0:00:30]} Kd8 {[%emt 0:00:30]} 43. Kg3 {[%emt 0:00:30]} g6 {[%emt 0:00:30]} 44. Rd4 {[%emt 0:00:30]} Be6 {[%emt 0:00:30]} 45. Kf4 {[%emt 0:00:30]} Rf5+ {[%emt 0:00:30]} 46. Ke3 {[%emt 0:00:30]} Kd7 {[%emt 0:00:30]} 47. Be4 {[%emt 0:00:30]} Rf6 {[%emt 0:00:30]} 48. Bd3 {[%emt 0:00:30]} g5 {[%emt 0:00:30]} 49. Bb5+ {[%emt 0:00:30]} Kd8 {[%emt 0:00:30]} 50. Be2 {[%emt 0:00:30]} h4 {[%emt 0:00:30]} 51. Ra4 {[%emt 0:00:30]} a5 {[%emt 0:00:30]} 52. b4 {[%emt 0:00:30]} Rf4 {[%emt 0:00:30]} 53. Bb5 $19 {[%emt 0:00:30]} Rxb4 {[%emt 0:00:30] Kd4 [%clk 0:00:00]} 0-1

[Event "44th BAN-ch OMICON 2018"]
[Site "Dhaka"]
[Date "2018.11.29"]
[Round "6"]
[White "Jabed Al Azad"]
[Black "Rahman, Syed Mahfuzur"]
[Result "0-1"]
[ECO "B54"]
[WhiteElo "2008"]
[BlackElo "2224"]
[Annotator "NA RC"]
[PlyCount "27"]
[EventDate "2018.11.24"]
[EventType "swiss"]
[EventCountry "BAN"]
[SourceTitle "playchess.com"]
[Source "ChessBase"]
[SourceQuality "1"]
[TimeControl "40/5400+30:1800+30"]

1. e4 {[%emt 1:30:30]} c5 {[%emt 1:30:30]} 2. Nf3 {[%emt 0:00:30]} d6 {[%emt 0:00:30]} 3. d4 {[%emt 0:00:30]} cxd4 {[%emt 0:00:30]} 4. Nxd4 {[%emt 0:00:30] Nf6Nc3 [%clk 0:00:00]} a6 {[%emt 0:00:30]} 5. Be2 {[%emt 0:00:30]} e5 {[%emt 0:00:30]} 6. Nb3 {[%emt 0:00:30]} Be7 {[%emt 0:00:30]} 7. O-O {[%emt 0:00:30]} Be6 {[%emt 0:00:30]} 8. f4 {[%emt 0:00:30]} Qc7 {[%emt 0:00:30]} 9. Be3 {[%emt 0:00:30]} Nd7 {[%emt 0:00:30]} 10. Bf3 {[%emt 0:00:30]} Rc8 {[%emt 0:00:30]} 11. f5 {[%emt 0:00:30]} Bc4 {[%emt 0:00:30]} 12. Rf2 {[%emt 0:00:30]} b5 {[%emt 0:00:30]} 13. a3 {[%emt 0:00:30]} h6 {[%emt 0:00:30]} 14. Qd2 {[%emt 0:00:30] O-O [%clk 0:00:00] g4 [%clk 0:00:00] Nh7 [%clk 0:00:00] Rd1 [%clk 0:00:00] Rfd8 [%clk 0:00:00] Rg2 [%clk 0:00:00] Ng5 [%clk 0:00:00] Qf2 [%clk 0:00:00] Nh3+ [%clk 0:00:00]} 0-1